bitfinex/quotes_ETHUSD_20260131
["timestamp","ask_amount","ask_price","bid_price","bid_amount"]
[1769825851186,4.55057574,2689.1,2687.9,0.93219323]
[1769825851386,4.55057574,2689.1,2687.9,0.00211993]
[1769825851592,0.4136887,2689.1,2687.9,5.13223618]
[1769825851872,0.92962074,2689.3,2687.9,5.13223618]
[1769825852763,5.06650778,2689.3,2687.9,5.13223618]
[1769825853658,5.06650778,2689.3,2689.1,0.0011]
[1769825853898,5.06650778,2689.3,2687.9,5.13223618]
[1769825854201,0.87848097,2689.2,2688.0,5.0852834]
[1769825854510,0.87848097,2689.2,2688.9,0.0011]
[1769825854894,5.01536801,2689.2,2688.9,0.0011]
[1769825855474,5.01536801,2689.2,2688.0,5.0852834]
[1769825855682,0.59449888,2689.1,2688.1,4.80177188]
[1769825856412,0.59449888,2689.1,2688.2,0.92999032]
[1769825858776,4.29287979,2689.0,2688.2,0.92999032]
[1769825859909,4.29287979,2689.3,2688.2,5.38782371]
[1769825860815,0.778,2689.5,2688.2,5.38782371]
[1769825861096,4.29287979,2690.2,2688.3,4.45783339]
[1769825861295,4.29287979,2690.2,2688.3,5.36861919]
[1769825861873,4.29287979,2689.9,2688.3,5.36861919]
[1769825862084,4.29287979,2689.7,2688.2,0.92998444]
[1769825862288,5.07187979,2689.7,2688.1,0.9300175]
[1769825862484,4.29287979,2689.5,2688.1,0.9300175]
[1769825862689,4.29287979,2689.5,2688.0,0.93003367]
[1769825862892,4.29287979,2689.3,2687.9,0.00211993]
[1769825863086,4.29287979,2689.3,2687.9,0.91328962]
[1769825864077,4.29287979,2689.3,2688.0,4.45783339]
[1769825864893,5.22252429,2689.2,2688.1,0.93002492]
[1769825865093,0.89409978,2689.1,2688.1,0.93002492]
[1769825865295,0.89409978,2689.1,2688.1,5.38785831]
[1769825865794,0.92963278,2689.3,2688.1,5.38785831]
[1769825866195,5.22251257,2689.3,2688.1,5.38785831]
[1769825866496,5.22251257,2689.3,2688.3,0.0011]
[1769825866700,4.29287979,2688.8,2688.3,0.0011]
[1769825866899,0.42938798,2688.7,2688.3,0.0011]
[1769825867414,0.93076083,2688.9,2688.3,0.0011]
[1769825867587,5.22364062,2688.9,2688.3,0.0011]
[1769825867916,5.22364062,2688.9,2688.0,0.0011]
[1769825869778,5.22364062,2688.9,2687.9,0.00211993]
[1769825869980,4.29287979,2688.7,2687.9,0.00211993]
[1769825870186,4.29287979,2688.7,2687.9,0.00105997]
[1769825870383,5.07187979,2688.7,2687.9,0.00105997]
[1769825870803,4.29287979,2688.6,2687.9,0.00105997]
[1769825871402,4.29287979,2688.4,2687.9,0.00105997]
[1769825871607,4.29287979,2688.2,2687.9,0.00105997]
[1769825872018,4.29287979,2688.2,2687.2,0.11871927]
[1769825872323,4.29287979,2688.2,2687.2,1.04905474]
[1769825872919,0.92988655,2688.5,2687.2,5.50688813]
[1769825872920,5.22276634,2688.5,2687.2,5.50688813]
[1769825873124,4.75782307,2688.4,2687.2,0.11871927]
[1769825873320,4.75782307,2688.4,2685.4,6.52429194]
[1769825873321,4.29287979,2687.8,2685.8,0.19386997]
[1769825873526,4.29287979,2686.9,2685.4,3.7238213]
[1769825873821,4.55824083,2686.9,2686.0,0.93072561]
[1769825874195,4.55824083,2686.9,2685.9,0.93076529]
[1769825874413,4.29287979,2686.7,2686.0,0.93074584]
[1769825874890,0.26536104,2686.9,2686.3,0.93064013]
[1769825875292,0.779,2687.5,2686.3,5.38847352]
[1769825875618,2.37905255,2687.5,2686.5,0.93057882]
[1769825876212,6.67192563,2687.5,2686.5,0.93057882]
[1769825876434,4.29287979,2687.4,2686.5,0.93057882]
[1769825876613,0.26558646,2687.7,2686.5,5.38841221]
[1769825876950,0.26558646,2687.7,2686.6,5.01423346]
[1769825877614,1.19575751,2687.7,2686.7,0.93050954]
[1769825877931,4.29287979,2687.6,2686.6,0.93052226]
[1769825878131,4.29287979,2687.4,2686.6,0.93052226]
[1769825879522,4.29287979,2687.4,2686.7,0.0011]
[1769825880602,1.19575576,2687.7,2686.7,0.0011]
[1769825880942,0.26558646,2687.7,2686.7,4.45893339]
[1769825881606,0.001,2688.0,2686.8,4.45783339]
[1769825881800,0.001,2688.0,2687.0,4.45783339]
[1769825882005,4.29387979,2688.0,2686.9,0.93044028]
[1769825882405,4.29387979,2688.0,2686.8,0.93045693]
[1769825882601,4.29287979,2687.8,2686.7,0.93160591]
[1769825882807,4.29287979,2687.8,2686.7,0.0011]
[1769825883332,0.42938798,2687.9,2685.9,4.45783339]
[1769825883333,4.29287979,2687.4,2686.0,0.93073128]
[1769825883503,4.29287979,2687.4,2686.3,0.93064228]
[1769825883912,4.29287979,2687.2,2686.0,0.93075204]
[1769825884127,4.81519795,2687.1,2686.0,1.8130313]
[1769825884322,5.22316958,2687.4,2686.1,4.45783339]
[1769825884737,4.29287979,2687.4,2686.1,4.40783339]
[1769825884925,4.81518968,2687.4,2686.2,5.07991986]
[1769825885250,5.22300911,2687.8,2686.2,4.45783339]
[1769825885533,5.22300911,2687.8,2686.0,1.8130313]
[1769825885834,4.29287979,2687.6,2686.0,1.8130313]
[1769825886006,4.29287979,2687.4,2686.0,1.8130313]
[1769825886202,0.52231123,2687.3,2686.1,1.04396562]
[1769825886822,0.52231123,2687.3,2686.1,5.40944046]
[1769825887020,6.09619576,2688.0,2686.1,5.40944046]
[1769825887938,5.16611947,2688.0,2686.3,4.36547484]
[1769825888137,0.001,2688.0,2686.3,4.36547484]
[1769825889427,0.001,2688.0,2686.5,4.36547484]
[1769825890039,0.001,2688.0,2686.7,4.36547484]
[1769825890338,0.001,2688.0,2686.9,4.36547484]
[1769825892144,0.001,2688.0,2687.1,4.36547484]
[1769825892712,0.001,2687.8,2687.1,4.36547484]
[1769825894026,0.26548367,2688.7,2687.3,4.36547484]
[1769825894248,4.38611947,2688.6,2687.4,0.52958112]
[1769825895034,0.26548367,2688.7,2687.4,4.89505596]
[1769825895219,1e-08,2688.7,2687.5,4.36547484]
[1769825896011,1e-08,2688.7,2687.6,0.93019794]
[1769825896216,1e-08,2688.7,2687.7,0.46509897]
[1769825896814,1e-08,2688.7,2687.7,4.83057381]
[1769825897349,4.38611948,2688.7,2687.6,0.93019794]
[1769825897710,4.38611948,2688.7,2687.3,0.93027719]
[1769825897932,4.38611948,2688.7,2687.4,0.93026708]
[1769825898133,4.38611948,2688.7,2686.9,3.72164908]
[1769825898134,4.38611947,2688.3,2686.9,3.72164908]
[1769825898915,4.38611947,2688.3,2686.9,0.93044028]
[1769825899949,4.38611947,2688.3,2686.1,4.36547484]
[1769825900129,4.38611947,2687.9,2686.2,0.93068274]
[1769825900445,4.38611947,2687.9,2686.3,0.52961576]
[1769825901053,4.38611947,2687.9,2686.1,3.72281839]
[1769825901054,4.38611947,2687.7,2686.1,0.9306901]
[1769825901227,4.38611947,2687.5,2686.1,0.9306901]
[1769825902255,0.93026717,2687.4,2685.7,3.72337262]
[1769825902554,4.85125306,2687.3,2685.8,0.46542633]
[1769825903826,4.85125306,2687.3,2685.7,4.36547484]
[1769825904363,4.85125306,2687.3,2685.6,0.93089067]
[1769825904653,4.38611947,2687.1,2685.6,4.36547484]
[1769825904839,4.38611947,2687.1,2686.0,0.0011]
[1769825905046,0.53164559,2687.0,2686.0,0.0011]
[1769825905444,4.91776506,2687.0,2686.0,0.0011]
[1769825907359,5.31655975,2686.9,2686.0,0.0011]
[1769825908166,4.38611947,2686.9,2686.0,0.0011]
[1769825908351,0.46513359,2687.3,2686.0,4.36657484]
[1769825908537,4.38611947,2687.8,2686.2,4.36547484]
[1769825909233,4.38611947,2687.8,2686.4,4.36547484]
[1769825909428,5.31624953,2687.8,2686.4,4.36547484]
[1769825911144,5.31624953,2687.8,2686.2,3.72259241]
[1769825913232,4.38611947,2687.8,2686.3,4.36547484]
[1769825913457,0.93007819,2688.0,2686.5,4.36547484]
[1769825914387,4.38611947,2688.1,2686.5,4.36547484]
[1769825914574,4.38611947,2688.4,2686.5,4.36547484]
[1769825915301,4.38611947,2688.4,2686.7,4.36547484]
[1769825915456,0.60950258,2688.3,2686.9,4.36547484]
[1769825915874,4.38611947,2688.4,2686.9,4.36547484]
[1769825916072,0.92985093,2688.7,2686.8,0.5296019]
[1769825916073,4.38611948,2688.7,2687.1,4.36547484]
[1769825916284,1e-08,2688.7,2687.1,4.36547484]
[1769825917366,1e-08,2688.7,2687.3,4.55270463]
[1769825917689,4.92779745,2688.6,2687.4,0.5483041]
[1769825917883,4.92779745,2688.6,2687.3,4.55270463]
[1769825918094,1e-08,2688.7,2687.3,4.55270463]
[1769825919260,1e-08,2688.7,2687.4,1.03266717]
[1769825919460,1e-08,2688.7,2687.5,4.53817635]
[1769825922160,1e-08,2688.7,2687.7,4.53817635]
[1769825924266,0.26648654,2689.6,2688.4,4.53817635]
[1769825924592,4.57403049,2690.2,2688.8,4.53817635]
[1769825924982,4.57403049,2690.7,2688.8,4.53817635]
[1769825925794,4.57403049,2690.7,2688.5,5.01535102]
[1769825925986,0.01116715,2690.4,2688.5,0.47717467]
[1769825926184,4.57403049,2690.2,2688.3,4.64057635]
[1769825926487,4.57403049,2690.0,2688.4,0.92992114]
[1769825927994,5.50308768,2690.9,2688.6,4.53817635]
[1769825928682,5.50308768,2690.9,2689.0,4.53817635]
[1769825928896,4.57403049,2690.7,2689.1,0.45381763]
[1769825929095,4.57403049,2690.7,2689.1,4.99199398]
[1769825929300,4.57403049,2690.7,2689.1,4.53817635]
[1769825929482,4.57503049,2690.5,2689.1,4.53817635]
[1769825930087,0.92192923,2690.8,2689.1,4.53817635]
[1769825930410,4.05539628,2691.7,2689.1,4.53817635]
[1769825930411,5.50300661,2691.2,2689.1,4.53817635]
[1769825930575,5.50300661,2691.2,2689.3,4.53817635]
[1769825932488,5.50300661,2691.2,2689.4,0.92957536]
[1769825932696,5.50300661,2691.2,2689.4,5.46775171]
[1769825932882,4.57403049,2691.0,2689.5,0.91860532]
[1769825934313,4.57403049,2691.0,2689.5,5.45678167]
[1769825934505,4.57403049,2691.0,2689.6,0.92950624]
[1769825934700,4.57403049,2691.0,2689.6,5.46768259]
[1769825934877,0.99977287,2691.1,2689.6,5.46768259]
[1769825935077,6.28197544,2691.3,2689.8,4.53817635]
[1769825935780,4.57403049,2691.2,2689.8,4.53817635]
[1769825935991,4.57403049,2691.2,2689.7,1.01043129]
[1769825936804,4.57403049,2691.0,2689.8,0.92943713]
[1769825937080,0.55030186,2690.9,2689.8,0.92943713]
[1769825938016,0.55030186,2690.9,2689.8,5.46761348]
[1769825938505,5.12433235,2690.9,2689.8,5.46761348]
[1769825938711,4.57403049,2690.9,2689.8,5.46761348]
[1769825938910,0.92898814,2691.1,2689.8,5.46761348]
[1769825939591,5.50301863,2691.1,2689.8,5.46761348]
[1769825940716,5.50301863,2691.1,2689.6,0.92950624]
[1769825940919,4.57403049,2690.9,2689.6,0.92950624]
[1769825941217,4.57403049,2690.9,2689.6,5.46768259]
[1769825941784,4.57403049,2690.9,2689.6,0.92950624]
[1769825942180,3.79,2690.9,2689.7,0.0011]
[1769825942384,5.08311888,2690.8,2689.7,0.0011]
[1769825942783,4.57403049,2690.6,2689.7,0.0011]
[1769825942983,4.57403049,2690.6,2689.1,0.92967907]
[1769825943283,4.58519764,2690.6,2689.1,0.92967907]
[1769825943496,4.57403049,2690.6,2689.1,0.92967907]
[1769825943687,4.57403049,2690.4,2689.1,0.92967907]
[1769825944282,4.57403049,2690.4,2689.1,5.46785542]
[1769825944693,4.57403049,2690.4,2689.1,0.92967907]
[1769825944987,4.57403049,2690.2,2688.7,3.71917794]
[1769825945187,4.57403049,2690.0,2688.8,0.54279953]
[1769825947922,4.57403049,2690.0,2688.9,0.92974822]
[1769825947923,5.50342392,2690.0,2688.9,0.92974822]
[1769825950994,5.50342392,2690.0,2688.9,5.75651454]
[1769825951192,0.92935765,2690.1,2688.9,5.75651454]
[1769825951422,0.001,2690.9,2690.0,5.82730581]
[1769825951637,0.001,2690.9,2689.0,6.3152307]
[1769825951638,4.74701083,2690.9,2689.4,5.45999116]
[1769825951845,4.74601083,2690.7,2689.5,0.54599912]
[1769825952013,2.74360837,2690.6,2689.5,0.54599912]
[1769825952627,4.74601083,2690.7,2689.5,0.54599912]
[1769825952856,0.001,2690.9,2689.6,5.35391066]
[1769825953038,0.001,2690.9,2689.8,4.75331163]
[1769825955118,0.001,2690.9,2689.9,0.92940258]
[1769825955313,0.001,2690.7,2689.9,0.92940258]
[1769825955518,0.001,2690.7,2690.0,0.94003245]
[1769825959774,0.001,2690.9,2690.1,5.7560998]
[1769825959924,0.001,2690.9,2690.1,0.92933348]
[1769825961349,4.74701083,2690.9,2690.1,0.92933348]
[1769825961666,4.74601083,2690.7,2689.7,0.92947168]
[1769825963890,4.74601083,2690.7,2689.6,3.71788675]
[1769825964243,5.67515053,2690.7,2689.5,3.71806651]
[1769825964444,4.74601083,2690.5,2689.5,3.71806651]
[1769825965768,4.74601083,2690.3,2689.1,3.71970227]
[1769825967666,4.74601083,2690.3,2689.9,0.0011]
[1769825971950,5.22061191,2690.6,2689.9,0.0011]
[1769825972159,1.40376481,2690.6,2689.9,0.0011]
[1769825972498,6.14977566,2690.6,2689.9,0.0011]
[1769825972644,5.3609884,2690.5,2689.9,0.0011]
[1769825974976,4.74601083,2690.4,2689.3,0.92960993]
[1769825976454,4.74601083,2690.4,2689.1,0.0011]
[1769825976653,4.82772163,2690.2,2689.1,0.93077907]
[1769825976850,4.82772163,2690.2,2689.2,0.56514297]
[1769825978498,4.82772163,2690.2,2689.1,0.93077907]
[1769825978794,5.21683448,2690.0,2689.1,0.93077907]
[1769825979367,5.21683448,2690.0,2689.4,0.0011]
[1769825980882,5.21683448,2689.8,2689.4,0.0011]
[1769825981082,0.61462371,2689.7,2689.4,0.0011]
[1769825981414,5.21683448,2689.8,2689.4,0.0011]
[1769825984026,6.14618542,2690.1,2689.4,0.0011]
[1769825985802,5.21683448,2690.1,2689.4,0.0011]
[1769825986374,6.14617395,2690.1,2689.4,0.0011]
[1769825986573,0.98633854,2690.0,2689.4,0.0011]
[1769825986774,6.20317302,2690.0,2689.4,0.0011]
[1769825991112,5.21683448,2690.2,2689.4,0.0011]
[1769825991304,0.61399884,2690.3,2689.4,5.9264754]
[1769825991504,6.14608512,2690.4,2689.4,5.9264754]
[1769825991904,0.001,2690.0,2689.4,5.9264754]
[1769825992505,0.001,2690.0,2689.4,0.93067536]
[1769825992506,5.21783448,2690.0,2689.4,0.93067536]
[1769825993706,6.14720266,2690.0,2689.4,0.0011]
[1769825993936,5.73861793,2689.9,2689.4,0.0011]
[1769825995525,5.21683448,2689.9,2689.4,0.0011]
[1769825997937,0.001,2690.0,2689.4,0.0011]
[1769825998104,5.21783448,2690.0,2689.4,0.0011]
[1769825998311,6.14721424,2690.0,2689.4,0.0011]
[1769825998615,5.21683448,2689.9,2688.9,0.0011]
[1769825998829,6.2032895,2689.9,2688.9,0.0011]
[1769825999032,6.21445665,2689.9,2688.9,0.0011]
[1769825999198,5.21683448,2689.8,2688.6,0.0011]
[1769825999523,5.21683448,2689.6,2688.6,0.0011]
[1769825999723,5.21683448,2689.4,2688.6,0.0011]
[1769826000496,0.779,2689.7,2688.6,0.0011]
[1769826000497,5.21683448,2689.7,2688.6,4.99690004]
[1769826000727,5.21683448,2689.7,2688.7,5.49549004]
[1769826001328,6.14630729,2689.7,2688.7,5.49549004]
[1769826001599,5.21683448,2689.7,2688.7,5.49549004]
[1769826001812,5.21683448,2689.7,2688.8,0.9297828]
[1769826002029,6.14631185,2689.7,2688.8,0.9297828]
[1769826002235,5.21683448,2689.5,2688.8,0.9297828]
[1769826002506,5.21683448,2689.5,2688.6,0.0011]
[1769826002728,5.81432641,2689.5,2688.4,0.0011]
[1769826002941,5.21683448,2689.5,2688.4,0.93101153]
[1769826003156,1.06430905,2689.6,2688.4,0.0011]
[1769826003157,5.21683448,2689.3,2688.4,0.0011]
[1769826003319,5.21683448,2689.3,2688.4,0.93100077]
[1769826003526,5.21683448,2689.3,2688.4,0.0011]
[1769826003733,5.21683448,2689.3,2688.4,0.93100286]
[1769826003925,5.21683448,2689.3,2688.4,0.0011]
[1769826003926,0.92967907,2689.1,2688.4,0.0011]
[1769826004109,0.92967907,2689.1,2688.8,0.0011]
[1769826004319,6.14651355,2689.1,2688.8,0.0011]
[1769826007246,6.14651355,2689.1,2688.5,0.0011]
[1769826007456,5.21683448,2689.1,2688.5,0.0011]
[1769826007628,1.06430905,2689.6,2688.5,5.15790623]
[1769826007829,6.28351058,2689.7,2688.7,5.15680623]
[1769826008031,0.779,2689.8,2688.7,5.15680623]
[1769826008432,0.779,2689.8,2688.9,5.15680623]
[1769826008633,5.35401642,2690.2,2688.9,5.15680623]
[1769826008832,5.35401642,2690.2,2689.1,5.15680623]
[1769826009648,0.92914478,2690.7,2689.2,5.15680623]
[1769826009826,0.93006338,2690.9,2689.2,5.15680623]
[1769826010150,0.93006338,2690.9,2689.4,5.15680623]
[1769826010355,6.2840798,2690.9,2689.4,5.15680623]
[1769826010555,6.2840798,2690.9,2689.6,5.15680623]
[1769826011121,0.001,2690.9,2689.6,5.15680623]
[1769826011325,0.9300731,2690.9,2689.8,5.15680623]
[1769826011526,6.28408952,2690.9,2689.8,5.15680623]
[1769826013655,5.35501642,2690.9,2689.9,0.92940258]
[1769826014332,5.35501642,2690.9,2689.9,6.08620881]
[1769826014519,0.001,2690.9,2690.0,6.13718814]
[1769826015754,0.001,2690.9,2690.1,0.92933348]
[1769826015962,5.35501642,2690.9,2690.1,0.92933348]
[1769826016162,0.001,2690.7,2690.1,0.92933348]
[1769826016359,0.001,2690.7,2690.1,1.49203841]
[1769826019432,5.35501642,2690.7,2689.9,0.92937635]
[1769826019661,5.35501642,2690.7,2689.8,0.92942842]
[1769826020960,5.35401642,2690.5,2689.5,0.9295408]
[1769826021191,5.35401642,2690.5,2689.5,1.3943112]
[1769826024262,6.28321932,2690.5,2689.5,1.3943112]
[1769826027774,0.53550164,2690.6,2689.7,5.15790623]
[1769826028067,0.001,2690.7,2689.8,6.08624336]
[1769826028368,0.001,2690.7,2690.0,5.15680623]
[1769826029868,0.001,2690.7,2690.1,0.92933348]
[1769826030072,0.001,2690.7,2690.1,6.08613971]
[1769826036268,0.001,2690.7,2690.1,0.92933348]
[1769826036571,0.001,2690.7,2690.0,9.12603702]
[1769826036758,0.001,2690.7,2690.1,1.3824071]
[1769826039677,0.001,2690.7,2690.3,0.0011]
[1769826039883,0.001,2690.5,2690.3,0.0011]
[1769826041380,0.001,2690.5,2690.0,0.0011]
[1769826041381,5.27197815,2690.5,2690.0,0.0011]
[1769826041569,5.27097815,2690.3,2690.0,0.0011]
[1769826046287,5.79817596,2690.4,2690.0,0.0011]
[1769826050890,5.79817596,2690.4,2689.5,0.0011]
[1769826050891,5.27097815,2690.3,2689.5,0.0011]
[1769826051985,0.52719781,2690.4,2689.7,5.24713649]
[1769826053004,0.52719781,2690.4,2690.2,0.0011]
[1769826053165,0.5799176,2690.3,2690.2,0.0011]
[1769826054070,0.001,2690.5,2690.2,0.0011]
[1769826054679,0.001,2690.9,2690.2,0.0011]
[1769826055399,5.27197815,2690.9,2690.2,0.93039893]
[1769826055774,5.27197815,2690.9,2690.2,0.0011]
[1769826056097,5.27097815,2690.7,2690.2,0.0011]
[1769826057689,6.20011983,2690.7,2690.2,0.0011]
[1769826060527,0.52719781,2690.8,2690.2,0.0011]
[1769826060705,0.001,2690.9,2690.2,0.0011]
[1769826062414,0.001,2690.9,2690.2,6.17643542]
[1769826063276,6.04997815,2691.4,2690.4,5.24603649]
[1769826063974,6.97886542,2691.4,2690.4,5.24603649]
[1769826064317,5.27097815,2691.3,2690.4,5.24603649]
[1769826064625,5.27097815,2691.3,2690.6,0.92916078]
[1769826065308,0.001,2691.1,2690.6,0.92916078]
[1769826065528,5.27197815,2691.1,2690.6,0.92916078]
[1769826066425,5.27197815,2691.1,2690.2,0.93039893]
[1769826066426,6.20097706,2691.1,2690.2,0.93039893]
[1769826066631,5.64801111,2690.9,2690.2,0.93039893]
[1769826067196,5.64801111,2690.9,2690.2,0.0011]
[1769826067417,5.64801111,2690.9,2690.0,0.0011]
[1769826068728,5.64801111,2690.7,2690.0,0.0011]
[1769826070126,5.64801111,2690.7,2689.7,0.0011]
[1769826070330,5.64801111,2690.5,2689.7,0.0011]
[1769826071535,6.57720839,2690.5,2689.7,0.0011]
[1769826076928,6.57720839,2690.5,2689.9,0.0011]
[1769826087740,5.64801111,2690.5,2689.9,0.0011]
[1769826087942,6.57720763,2690.5,2689.9,0.0011]
[1769826088109,7.75035451,2690.5,2689.9,0.0011]
[1769826089747,0.001,2690.3,2689.9,0.0011]
[1769826091954,5.64901111,2690.3,2689.9,0.0011]
[1769826092119,5.64901111,2690.3,2689.7,0.0011]
[1769826092320,5.64801111,2690.1,2689.7,0.0011]
[1769826094250,0.56490111,2690.2,2689.7,0.0011]
[1769826094414,0.001,2690.3,2689.7,5.61954481]
[1769826095516,5.64801111,2690.2,2689.7,0.0011]
[1769826098528,0.001,2690.3,2689.7,0.0011]
[1769826098855,0.001,2690.7,2689.9,5.42934959]
[1769826099157,0.001,2690.7,2689.8,5.53513521]
[1769826099158,0.001,2690.7,2690.1,5.42934959]
[1769826099965,0.001,2691.1,2690.2,5.42934959]
[1769826100462,0.001,2691.1,2690.3,0.92926439]
[1769826100641,0.001,2691.1,2690.4,0.6358614]
[1769826101418,5.43018071,2691.1,2690.3,0.92926439]
[1769826104368,5.43018071,2691.1,2690.3,6.35861398]
[1769826104551,0.001,2691.1,2690.3,6.35861398]
[1769826104730,0.001,2691.1,2690.5,5.42934959]
[1769826106171,0.001,2691.1,2690.6,6.35851037]
[1769826106343,0.001,2691.1,2690.7,1.00751535]
[1769826107226,0.001,2691.1,2690.6,0.92916078]
[1769826108564,5.69457699,2691.7,2690.8,5.42934959]
[1769826109670,6.62336267,2691.7,2690.8,5.42934959]
[1769826109876,6.62336267,2691.7,2689.6,0.0011]
[1769826109877,5.42918071,2691.0,2689.6,5.43044959]
[1769826110051,6.20718071,2691.0,2689.9,0.9304998]
[1769826110251,6.20718071,2691.0,2690.0,0.92936698]
[1769826110605,5.42918071,2690.8,2689.9,5.43044959]
[1769826110777,0.92905719,2690.9,2689.9,5.43044959]
[1769826110778,5.42918071,2691.1,2690.0,5.97239455]
[1769826112565,6.35819002,2691.1,2690.0,1.47238747]
[1769826112868,6.35819002,2691.1,2690.0,0.92934251]
[1769826113466,6.35819002,2691.1,2689.9,0.0011]
[1769826113647,6.35819002,2691.1,2690.0,0.92935821]
[1769826114873,6.35819002,2691.1,2689.9,3.7187089]
[1769826115045,6.35819002,2691.1,2689.9,9.14805849]
[1769826115241,0.778,2691.2,2690.0,6.4370957]
[1769826115444,5.42918071,2691.1,2690.0,6.4370957]
[1769826116981,0.92902266,2691.0,2690.1,0.92933348]
[1769826117280,0.92902266,2691.0,2690.2,1.10837631]
[1769826119382,5.42918071,2691.0,2690.3,0.92926439]
[1769826120989,5.42918071,2691.4,2690.4,5.42934959]
[1769826121371,5.42918071,2691.4,2690.2,0.92929072]
[1769826121550,5.42918071,2691.2,2690.2,0.92929072]
[1769826121756,5.42918071,2691.2,2689.9,0.0011]
[1769826121955,5.42918071,2691.2,2689.9,0.93047913]
[1769826122155,5.42918071,2691.2,2690.1,0.92933318]
[1769826122391,5.42918071,2691.2,2690.2,0.92928738]
[1769826122685,5.42918071,2691.0,2690.2,0.92928738]
[1769826123860,0.92895362,2691.2,2690.1,9.14659728]
[1769826124065,5.42918071,2691.1,2690.1,3.71724769]
[1769826124480,5.42918071,2691.1,2690.1,0.92933348]
[1769826124675,5.42918071,2690.9,2690.0,0.92936627]
[1769826124889,5.42918071,2690.9,2690.5,0.0011]
[1769826126173,5.42918071,2690.7,2689.9,0.0011]
[1769826133555,5.59918754,2690.5,2689.9,0.0011]
[1769826136374,6.52840295,2690.5,2689.9,0.0011]
[1769826137090,6.52840295,2690.5,2690.1,0.0011]
[1769826137297,5.59918754,2690.4,2690.1,0.0011]
[1769826145083,5.59918754,2690.2,2689.5,0.0011]
[1769826145285,5.59918754,2689.8,2689.0,0.0011]
[1769826145823,5.59918754,2689.8,2689.0,0.93081135]
[1769826147432,6.52864448,2689.8,2689.0,0.0011]
[1769826147635,6.25205199,2689.7,2689.0,0.0011]
[1769826149639,6.25205199,2689.7,2689.4,0.0011]
[1769826152144,0.65286445,2689.7,2689.4,0.0011]
[1769826152349,6.31782693,2690.1,2689.4,0.0011]
[1769826152350,6.52845193,2690.3,2689.4,5.48626245]
[1769826152504,0.92926439,2690.3,2689.4,5.48626245]
[1769826153204,5.59918754,2690.2,2689.4,0.0011]
[1769826153434,5.59918754,2690.1,2689.4,0.0011]
[1769826153825,6.52853312,2690.1,2689.4,0.0011]
[1769826156626,5.59918754,2690.1,2689.4,0.0011]
[1769826157435,5.59918754,2690.1,2689.4,5.39635974]
[1769826157729,6.4994298,2690.3,2689.4,5.39635974]
[1769826157934,8.08042427,2690.3,2689.4,5.93610571]
[1769826159520,5.09589705,2690.2,2689.4,0.0011]
[1769826161445,6.02529963,2689.9,2689.4,0.0011]
[1769826161937,0.779,2689.8,2689.2,0.0011]
[1769826162128,5.09589705,2689.7,2689.2,0.0011]
[1769826163734,6.02539577,2689.7,2689.2,0.0011]
[1769826173252,6.02539577,2689.7,2689.1,0.0011]
[1769826174421,6.02539577,2689.7,2689.0,0.0011]
[1769826174622,1.70352535,2689.6,2689.0,0.0011]
[1769826174848,0.9295408,2689.5,2689.0,0.0011]
[1769826176860,1.70352535,2689.6,2689.0,6.13401451]
[1769826177067,0.9294909,2689.7,2689.0,6.13401451]
[1769826177243,1.7084909,2689.7,2689.0,6.13401451]
[1769826177442,1.7084909,2689.7,2689.0,5.20431297]
[1769826180180,1.7084909,2689.7,2689.0,6.13402655]
[1769826180569,0.779,2689.7,2689.0,6.13402655]
[1769826180739,0.001,2689.9,2689.2,5.20321297]
[1769826181040,0.001,2690.1,2689.2,5.20321297]
[1769826181839,0.779,2690.5,2689.3,5.20321297]
[1769826182040,0.779,2690.5,2689.5,5.20321297]
[1769826185036,0.779,2690.5,2689.7,5.20321297]
[1769826185241,0.779,2690.5,2689.8,5.81648489]
[1769826187369,0.779,2690.5,2689.9,0.92940258]
[1769826192477,0.779,2690.5,2689.5,0.92951482]
[1769826192478,5.28521976,2690.4,2689.5,0.92951482]
[1769826192643,5.28521976,2690.2,2689.5,0.92953767]
[1769826194180,5.28521976,2690.2,2689.6,0.929502]
[1769826194347,0.92921236,2690.5,2689.4,5.0200256]
[1769826194547,1.92230997,2690.5,2689.6,5.0189256]
[1769826194955,6.27831737,2690.5,2689.6,5.0189256]
[1769826195160,7.2075138,2690.5,2689.6,5.0189256]
[1769826195358,5.28521976,2690.4,2689.5,0.50200256]
[1769826195644,5.28521976,2690.4,2689.4,0.0011]
[1769826196545,5.28521976,2690.2,2689.4,0.0011]
[1769826196964,5.28521976,2690.2,2689.6,0.0011]
[1769826197765,5.28521976,2690.0,2689.4,0.0011]
[1769826197966,5.28521976,2689.8,2689.1,0.0011]
[1769826198157,5.28521976,2689.7,2689.1,0.0011]
[1769826199379,0.92950624,2689.6,2689.1,0.0011]
[1769826199545,5.28521976,2689.5,2689.1,0.0011]
[1769826200039,6.21469428,2689.7,2689.1,0.0011]
[1769826200273,5.65702226,2689.6,2689.1,0.0011]
[1769826202577,6.58654126,2689.6,2689.1,0.0011]
[1769826203366,5.65702226,2689.6,2689.1,0.0011]
[1769826203569,6.58653681,2689.6,2689.1,0.0011]
[1769826203770,5.94387344,2689.5,2689.1,0.0011]
[1769826208391,0.65865368,2689.5,2689.1,0.0011]
[1769826208853,0.65865368,2689.5,2689.3,0.0011]
[1769826212960,5.28521976,2690.0,2689.3,0.0011]
[1769826213192,5.28521976,2690.0,2689.3,0.40672409]
[1769826213359,5.28521976,2690.0,2689.3,0.0011]
[1769826215686,5.28521976,2689.8,2689.3,0.0011]
[1769826218318,6.21469041,2689.8,2689.3,0.0011]
[1769826220487,6.21469041,2689.8,2689.5,0.0011]
[1769826220888,6.21569041,2689.8,2689.5,0.0011]
[1769826221099,5.22599827,2689.7,2689.5,0.0011]
[1769826221416,5.22599827,2689.7,2689.1,0.0011]
[1769826224187,5.22599827,2689.5,2689.1,0.0011]
[1769826224385,6.00499827,2689.5,2689.1,0.0011]
[1769826226794,6.15557363,2689.4,2689.1,0.0011]
[1769826230393,7.22085215,2689.4,2689.1,0.0011]
[1769826233125,5.22599827,2689.3,2688.9,0.0011]
[1769826234121,5.22599827,2689.3,2689.0,0.0011]
[1769826234824,5.22599827,2689.3,2688.9,0.0011]
[1769826235024,6.1556886,2689.1,2688.9,0.0011]
[1769826238441,6.00499827,2689.0,2688.4,0.0011]
[1769826239910,0.779,2689.0,2688.4,0.0011]
[1769826240226,0.779,2689.0,2688.4,0.42295839]
[1769826240704,6.93472583,2689.0,2688.4,0.42295839]
[1769826240903,6.93472583,2689.0,2688.4,0.0011]
[1769826241303,0.45088561,2688.9,2688.4,5.14521383]
[1769826241630,0.45088561,2688.9,2688.4,4.21530575]
[1769826242430,5.67688388,2688.9,2688.4,0.0011]